Cogmind - Beta 16 @@@ ROGUE MODE // 2025.12.27 @ 14:55:12 Player: Compilatron Result: Destroyed by C-17 Slicer with Blade Saw Performance ------------- Evolutions (2) 1000 Regions Visited (5) 1000 Robots Destroyed (17) 85 Value Destroyed (497) 497 Prototype IDs (1) 20 Alien Tech Used (0) 0 Bonus (200) 200 TOTAL SCORE: 2802 Bonus ------- Entered Garrisons 200 Cogmind --------- Core Integrity 0/550 Matter 202/300 Energy 100/100 System Corruption 0% Temperature Cool (0) Movement Core (200) Ox3 Location -8/Garrison Parts ------- > --- POWER (1) -------- (None) > --- PROPULSION (4) --- (None) > --- UTILITY (4) ------ Medium Storage Unit > --- WEAPON (2) ------- (None) > --- INVENTORY (10) --- Ion Engine Improved Heat Sink Visual Processing Unit Seismic Detector Beam Rifle Heavy Assault Rifle Heavy Assault Rifle Mining Laser Plasma Cutter Peak State ------------ > --- POWER ------------ Heavy Ion Engine > --- PROPULSION ------- Aluminum Leg Aluminum Leg Aluminum Leg Improved Aluminum Leg > --- UTILITY ---------- Medium Storage Unit Structural Scanner Improved Sensor Array Hardened Medium Armor Plating > --- WEAPON ----------- Heavy Assault Rifle High-powered Shotgun > --- INVENTORY -------- Ion Engine Wheel Improved Heat Sink Visual Processing Unit Seismic Detector Beam Rifle Heavy Assault Rifle Heavy Assault Rifle Mining Laser Plasma Cutter [Rating: 22] Favorites ----------- Power Ion Engine Engine Ion Engine Propulsion Light Treads Treads Light Treads Leg Aluminum Leg Wheel Wheel Utility Medium Storage Unit Device Structural Scanner Storage Medium Storage Unit Protection Propulsion Shielding Weapon Mining Laser Energy Gun EM Pulse Gun Ballistic Gun Heavy Assault Rifle Launcher Rocket Launcher Special Weapon Mining Laser Build | -11 -10 -10 -9 -8 -8 ------- Run | Yrd Mat Min Mat Mat Gar Slots Evolved 4 | . . . 2 2 . Power . | . . . . . . Propulsion 2 | . . . . 2 . Utility 2 | . . . 2 . . Weapon . | . . . . . . Parts Attached 26 | . 5 4 8 9 . Power 2 | . . . 1 1 . Engine 2 | . . . 1 1 . Core . | . . . . . . Reactor . | . . . . . . Propulsion 7 | . 2 1 . 4 . Treads 2 | . 2 . . . . Leg 4 | . . . . 4 . Wheel 1 | . . 1 . . . Hover . | . . . . . . Flight . | . . . . . . Utility 9 | . 2 . 4 3 . Device 5 | . . . 3 2 . Storage 1 | . 1 . . . . Processor . | . . . . . . Hackware . | . . . . . . Protection 3 | . 1 . 1 1 . Artifact . | . . . . . . Weapon 8 | . 1 3 3 1 . Energy Gun 3 | . 1 1 1 . . Energy Cannon . | . . . . . . Ballistic Gun 2 | . . . 1 1 . Ballistic Cannon . | . . . . . . Launcher 1 | . . 1 . . . Special Weapon 2 | . . 1 1 . . Impact Weapon . | . . . . . . Slashing Weapon . | . . . . . . Piercing Weapon . | . . . . . . Special Melee Weapon . | . . . . . . Unidentified Prototypes 1 | . . . . 1 . Parts Lost 14 | . . 2 1 1 10 Power 1 | . . . . . 1 Propulsion 6 | . . . . 1 5 Utility 3 | . . . 1 . 2 Weapon 4 | . . 2 . . 2 Highest Loss Streak 8 | . . 1 1 1 8 To Critical Strikes 1 | . . . . 1 . Average Backups 8 | 6 7 9 8 7 9 Power 1 | 1 1 2 1 1 1 Propulsion 2 | 4 3 2 2 1 . Utility 1 | . 1 3 1 2 3 Weapon 2 | 1 1 2 2 1 4 Tool/Special . | . . . . . . Unused Backups 14 | . 7 1 2 . 4 Power 3 | . 1 . 1 . 1 Propulsion 1 | . 1 . . . . Utility 4 | . 2 . . . 2 Weapon 6 | . 3 1 1 . 1 Tool/Special . | . . . . . . Average Slot Usage (%) 91 | . 94 95 95 96 62 Engine 10 | . 14 14 11 9 4 Treads 9 | . 16 14 11 2 . Leg 9 | . 11 . . 29 17 Wheel 5 | . . 14 11 . 2 Device 12 | . . . 20 18 16 Storage 11 | . 14 14 11 9 9 Protection 9 | . 8 14 11 9 4 Energy Gun 9 | . 28 13 5 . . Ballistic Gun 5 | . . . 4 13 8 Special Weapon 5 | . . 9 9 4 . Peak Build Rating 22 | 6 8 9 14 22 22 Average Rating 11 | 6 7 7 12 18 13 On Entrance 10 | 6 6 7 7 13 22 Avg Prop Armor Cover (%) 10 | . . 12 10 6 . Naked Turns . | . . . . . . Heaviest Build 34 | 13 20 20 32 34 34 Greatest Support 43 | 20 40 10 10 43 43 Greatest Overweight (x) 7 | . . 1 3 1 7 Average Overweight (x) 1 | . . 1 1 . 1 Largest Inventory Capacity 10 | 8 10 10 10 10 10 Average Capacity 9 | 8 9 10 10 10 10 Most Carried 10 | 6 10 10 10 10 10 Average Carried 8 | 6 8 9 8 7 9 Final Capacity 10 | 8 10 10 10 10 10 Final Carried 10 | 6 10 10 8 10 9 Class Distribution -------------------- 100% | Mutant Dominant Class ---------------- Mutant | -10/Materials Mutant | -10/Mines Mutant | -9/Materials Mutant | -8/Materials Mutant | -8/Garrison Resources | -11 -10 -10 -9 -8 -8 ----------- Run | Yrd Mat Min Mat Mat Gar Matter Collected 546 | 200 10 42 72 222 . Remotely . | . . . . . . Salvage Created 522 | . 98 80 72 222 50 Parts 34 | . 9 6 3 15 1 Haulers Intercepted 1 | . 1 . . . . Recyclers Shooed 2 | . 1 . . 1 . Parts Field Recycled . | . . . . . . Retrieved Matter . | . . . . . . Parts Self-Destructed . | . . . . . . Prevented . | . . . . . . Parts Restored . | . . . . . . Kills | -11 -10 -10 -9 -8 -8 ------- Run | Yrd Mat Min Mat Mat Gar Combat Hostiles Destroyed 15 | . 1 5 1 7 1 Guns 10 | . 1 1 1 6 1 Cannons 2 | . . 1 . 1 . AOE 3 | . . 3 . . . Classes Destroyed 6 | . 2 1 2 . 1 Hauler 1 | . 1 . . . . Watcher 1 | . . . 1 . . Swarmer 6 | . . 3 . 3 . Grunt 5 | . 1 2 . 2 . Sentry 3 | . . . 1 2 . Hunter 1 | . . . . . 1 Best Kill Streak 3 | . 1 3 1 3 1 Combat Bots Only 3 | . 1 3 1 3 1 Max Kills in Single Turn 2 | . 1 2 1 2 1 Gunslinging . | . . . . . . Exploded 2 | . . 2 . . . Melee . | . . . . . . Uniques/NPCs Destroyed . | . . . . . . Combat | -11 -10 -10 -9 -8 -8 -------- Run | Yrd Mat Min Mat Mat Gar Hostile Shots Fired 215 | . 7 23 18 39 128 Missed 53 | . 4 1 3 6 39 Hits 162 | . 3 22 15 33 89 Melee 9 | . . . . . 9 Projectile 153 | . 3 22 15 33 80 Critical Strikes 16 | . . . . 4 12 Damage Taken 2389 | . 47 357 221 392 1372 Core 701 | . . 131 18 33 519 Absorbed by Shields 61 | . . . . . 61 Redirected to Shielding 38 | . 4 22 12 . . Core Remaining (%) 80 | 100 . 47 95 . . Volleys Fired 73 | . 6 19 18 22 8 Largest 2 | . 2 2 2 2 2 Hottest 156 | . 90 133 156 123 48 Shots Fired 121 | . 12 21 32 41 15 Gun 97 | . 12 15 18 37 15 Cannon . | . . . . . . Launcher 2 | . . 2 . . . Special 22 | . . 4 14 4 . Kinetic 59 | . . . 7 37 15 Thermal 53 | . 6 18 25 4 . Explosive 2 | . . 2 . . . Electromagnetic 7 | . 6 1 . . . Robot Hit Streak 7 | . 2 5 6 5 7 Robot Miss Streak 3 | . 3 2 2 3 2 Penetration Max . | . . . . . . Secondary Targets 1 | . . . . . 1 Max Gunslinging Chain 1 | . . . . . 1 Shots Hit Robots 66 | . 5 13 12 24 12 Core Hits 34 | . 3 6 4 14 7 Critical Kills . | . . . . . . Critical Parts Destroyed . | . . . . . . Critical Strikes 2 | . . . 2 . . Burn 1 | . . . 1 . . Sever 1 | . . . 1 . . Melee Attacks . | . . . . . . Impact . | . . . . . . Slashing . | . . . . . . Piercing . | . . . . . . Sneak Attacks . | . . . . . . Combat Hostiles . | . . . . . . Follow-up Attacks . | . . . . . . Damage Inflicted 1334 | . 74 436 185 438 201 Guns 926 | . 74 139 105 414 194 Cannons . | . . . . . . Explosions 273 | . . 273 . . . Melee . | . . . . . . Ramming 7 | . . . . . 7 Kinetic 625 | . . . 17 414 194 Thermal 488 | . 46 250 168 24 . Explosive 173 | . . 173 . . . Electromagnetic 41 | . 28 13 . . . Impact . | . . . . . . Slashing . | . . . . . . Piercing . | . . . . . . Highest Corruption 2 | . 2 2 1 . . Average Corruption 1 | . 1 2 1 . . Corruption Purged . | . . . . . . Corruption Blocked . | . . . . . . Effects 8 | . 2 2 4 . . Message Errors 2 | . . 1 1 . . Energy Discharges 3 | . . 1 2 . . Parts Rejected 1 | . 1 . . . . Data Loss (minor) 2 | . 1 . 1 . . Overload Shots . | . . . . . . Overflow Damage 59 | . . 59 . . . Projectiles 20 | . . 20 . . . Explosions 39 | . . 39 . . . Melee . | . . . . . . Knockbacks . | . . . . . . Impact . | . . . . . . Kinetic . | . . . . . . Secondary . | . . . . . . Self-Inflicted Damage 121 | . . 118 . . 3 Shots 3 | . . 3 . . . Rammed 3 | . 1 . . . 2 Targets Rammed 3 | . 1 . . . 2 Kicked . | . . . . . . Crushed . | . . . . . . Highest Temperature 262 | . 60 262 46 80 172 Average Temperature 50 | . 27 102 18 33 62 Received Heat Transfer 1069 | . 27 90 90 171 691 Siege Activations . | . . . . . . Martial Activations . | . . . . . . Shielding Activations . | . . . . . . Robots Disrupted . | . . . . . . Combat Hostiles . | . . . . . . Robots Corrupted . | . . . . . . Combat Hostiles . | . . . . . . Parts Fried . | . . . . . . Impact Corruptions . | . . . . . . Robots Melted . | . . . . . . Combat Hostiles . | . . . . . . Parts Melted 2 | . . . 2 . . Heat Transferred 1189 | . 112 520 507 50 . Parts Sabotaged . | . . . . . . Parts Stolen . | . . . . . . Parts Stripped . | . . . . . . Power Chain Reactions 1 | . . 1 . . . Alert | -11 -10 -10 -9 -8 -8 ------- Run | Yrd Mat Min Mat Mat Gar Maximum Alert Level . | . . . . . . Low Security (%) 100 | 100 100 100 100 100 100 Level 1 . | . . . . . . Level 2 . | . . . . . . Level 3 . | . . . . . . Level 4 . | . . . . . . Level 5 . | . . . . . . High Security . | . . . . . . Max Security . | . . . . . . Peak Influence 109 | . 20 73 32 109 106 Initial 61 | . . . 24 . 61 Average 23 | . 1 19 5 60 63 Influence Increases 608 | . 42 152 75 204 135 Destroy 0b10 Robot/C 300 | . 20 100 20 140 20 Destroy 0b10 Robot/NC 10 | . 5 . 5 . . Destroy Leader 84 | . 2 20 12 40 10 Successful Hack 31 | . . 8 18 5 . Disable Machine 30 | . 15 . 15 . . Destroy Structure 33 | . . 24 5 4 . Lose Combat Pursuer 120 | . . . . 15 105 Influence Decreases 512 | . 42 89 138 110 133 Entered New Map 72 | . . . 39 . 33 Time Decay 310 | . 42 69 99 100 . Lost Part 130 | . . 20 . 10 100 Squads Dispatched 2 | . . . . 2 . Investigation 1 | . . . . 1 . Extermination . | . . . . . . Reinforcement 1 | . . . . 1 . Assault . | . . . . . . Garrison . | . . . . . . Intercept . | . . . . . . Searches Triggered . | . . . . . . Construction Impeded . | . . . . . . Haulers Reinforced . | . . . . . . Active Scanning Responses . | . . . . . . Cargo Convoy Interrupts . | . . . . . . Stealth | -11 -10 -10 -9 -8 -8 --------- Run | Yrd Mat Min Mat Mat Gar Distress Signals 1 | . . . . 1 . Communications Jammed . | . . . . . . Distress Signals . | . . . . . . Times Spotted 42 | . 5 5 8 10 14 Peak Tracking Total 8 | . 2 3 3 5 8 Tactical Retreats 3 | . . . . 1 2 Traps | -11 -10 -10 -9 -8 -8 ------- Run | Yrd Mat Min Mat Mat Gar Traps Triggered 6 | . 2 . 1 . 3 Indirectly . | . . . . . . Trap Hack Attempts . | . . . . . . Triggered . | . . . . . . Disarmed . | . . . . . . Reprogrammed . | . . . . . . Reused . | . . . . . . Traps Extracted . | . . . . . . Installed . | . . . . . . Triggered . | . . . . . . Machines | -11 -10 -10 -9 -8 -8 ---------- Run | Yrd Mat Min Mat Mat Gar Machines Disabled 2 | . 1 . 1 . . Max in Single Turn 1 | . 1 . 1 . . Garrison Relay 1 | . . . . . 1 Machines Repaired . | . . . . . . Machines Dismantled 1 | . . . 1 . . Machines Sabotaged . | . . . . . . Overloaded Fab Kills . | . . . . . . Hacking | -11 -10 -10 -9 -8 -8 --------- Run | Yrd Mat Min Mat Mat Gar Machines Accessed 8 | . . 1 5 2 . Terminals 5 | . . 1 3 1 . Fabricators . | . . . . . . Repair Stations 2 | . . . 2 . . Recycling Units . | . . . . . . Scanalyzers . | . . . . . . Garrison Access 1 | . . . . 1 . Total Hacks 24 | . . 2 16 6 . Successful 12 | . . 2 7 3 . Failed 12 | . . . 9 3 . Catastrophic 1 | . . . . 1 . Database Lockouts . | . . . . . . Manual 16 | . . 1 11 4 . Terminals 17 | . . 2 11 4 . Fabricators . | . . . . . . Repair Stations 5 | . . . 5 . . Recycling Units . | . . . . . . Scanalyzers . | . . . . . . Garrison Access 2 | . . . . 2 . Terminal Hacks 2 | . . 1 . 1 . Record 1 | . . 1 . . . Locate Traps 1 | . . . . 1 . Fabricator Hacks . | . . . . . . Repair Station Hacks 1 | . . . 1 . . Scan Component 1 | . . . 1 . . Recycling Unit Hacks . | . . . . . . Scanalyzer . | . . . . . . Garrison Access Hacks 1 | . . . . 1 . Unlock Access 1 | . . . . 1 . Unauthorized Hacks 8 | . . 1 6 1 . Terminals 8 | . . 1 6 1 . Track 2 | . . . 2 . . Botnet 3 | . . . 2 1 . Detonate 1 | . . 1 . . . Operators 2 | . . . 2 . . Fabricators . | . . . . . . Repair Stations . | . . . . . . Recycling Units . | . . . . . . Scanalyzers . | . . . . . . Garrison Access . | . . . . . . Data Cores Recovered . | . . . . . . Used . | . . . . . . Hacking Detections 8 | . . 1 5 2 . Full Trace Events 1 | . . . . 1 . Feedback Events . | . . . . . . Feedback Blocked . | . . . . . . Robot Schematics Acquired . | . . . . . . Robots Built . | . . . . . . Authchips . | . . . . . . Time . | . . . . . . Total Robot Build Rating . | . . . . . . Part Schematics Acquired . | . . . . . . Parts Built . | . . . . . . Authchips . | . . . . . . Time . | . . . . . . Total Part Build Rating . | . . . . . . Part Studies Acquired . | . . . . . . Parts Repaired . | . . . . . . Time . | . . . . . . Parts Recycled . | . . . . . . Recycled Matter . | . . . . . . Retrieved Matter . | . . . . . . Retrieved Components . | . . . . . . Parts Scanalyzed . | . . . . . . Part Schematics Acquired . | . . . . . . Parts Damaged . | . . . . . . Bothacking | -11 -10 -10 -9 -8 -8 ------------ Run | Yrd Mat Min Mat Mat Gar Used RIF Installer . | . . . . . . Robots Hacked . | . . . . . . Non-combat . | . . . . . . Combat . | . . . . . . Robot Hacks Applied . | . . . . . . Relay Couplers Released 5 | . . . . . 5 Machine Destruction 5 | . . . . . 5 Fabnet Peak Effective % . | . . . . . . Robots Rewired . | . . . . . . Allies Hacked . | . . . . . . Hacks Repelled . | . . . . . . Allies | -11 -10 -10 -9 -8 -8 -------- Run | Yrd Mat Min Mat Mat Gar Total Allies . | . . . . . . Largest Group . | . . . . . . Highest-Rated Group . | . . . . . . Highest-Rated Ally . | . . . . . . Total Orders . | . . . . . . Ally Attacks . | . . . . . . Total Damage . | . . . . . . Kills . | . . . . . . Allies Corrupted . | . . . . . . Allies Melted . | . . . . . . Intel | -11 -10 -10 -9 -8 -8 ------- Run | Yrd Mat Min Mat Mat Gar Active Infowar (turns) 971 | . . . 529 275 167 Sensors 522 | . . . 345 10 167 Structural 955 | . . . 529 275 151 Seismic 279 | . . . 16 263 . Robot Analysis Total . | . . . . . . Derelict Logs Recovered 2 | . . 2 . . . Drone Launches . | . . . . . . Drone Recoveries . | . . . . . . Exploration | -11 -10 -10 -9 -8 -8 ------------- Run | Yrd Mat Min Mat Mat Gar Turns Passed 1485 | 3 319 181 529 275 178 Spaces Moved 953 | 3 197 123 382 144 104 Core 15 | . . . . . 15 Treads 112 | . 112 . . . . Legs 274 | 3 85 . . 144 42 Wheels 552 | . . 123 382 . 47 Hover . | . . . . . . Flight . | . . . . . . Fastest Speed 95 | 120 120 95 95 120 95 Average Speed 118 | 120 142 95 108 124 126 Slowest Speed 400 | 120 160 95 125 190 400 Overloaded Moves . | . . . . . . Propulsion Burnouts . | . . . . . . Robots Hopped . | . . . . . . Potential Cave-ins . | . . . . . . Cave-ins Triggered . | . . . . . . Exploration Rate (%) 22 | 2 33 34 33 14 21 Regions Visited 5 Branch Regions 1 Pre-discovered Areas . | . . . . . . Known Exits Taken 1 | . . . . 1 . Unknown Exits Taken 4 | 1 1 1 1 . . Scrap Searched . | . . . . . . Spaces Dug 2 | . . . 2 . . Terrain Destroyed 40 | . . 32 5 3 . Melee . | . . . . . . Projectile 8 | . . . 5 3 . AOE 32 | . . 32 . . . Terrain Rammed . | . . . . . . Walls Destroyed . | . . . . . . Machines Disabled . | . . . . . . Actions | -11 -10 -10 -9 -8 -8 --------- Run | Yrd Mat Min Mat Mat Gar Total 1138 | 2 223 157 435 188 133 Wait 24 | . 1 10 11 2 . Move 948 | 2 196 122 381 143 104 Hop . | . . . . . . Pick Up 26 | . 9 2 7 8 . Fast Attach 1 | . 1 . . . . Attach 11 | . 1 2 4 3 1 Detach . | . . . . . . Swap 18 | . 3 2 6 7 . Drop 13 | . 5 . 5 3 . Fire 73 | . 6 19 18 22 8 Melee . | . . . . . . Ram 2 | . . . . . 2 Kick . | . . . . . . Crush 1 | . 1 . . . . Escape Stasis 18 | . . . . . 18 Rewire . | . . . . . . Trap . | . . . . . . Miscellaneous 3 | . . . 3 . . Route ------- -11/Scrapyard -10/Materials -10/Mines -9/Materials (discovered 2 exits: *Mat / Sto) -8/Materials -8/Garrison History --------- Turn | Location | Event 1 | -11/Scrapyard | Discovered new exit (range 2) 4 | -11/Scrapyard | Entered Materials 5 | -10/Materials | Met a group of wandering Federalists 170 | -10/Materials | Discovered new exit (range 15) 318 | -10/Materials | Build established: Mutant 323 | -10/Materials | Entered Mines 435 | -10/Mines | Received a Rocket Launcher from a helpful Derelict 449 | -10/Mines | Learned Materials garrison access intel 467 | -10/Mines | Discovered new exit (range 6) 483 | -10/Mines | Core integrity fell below 50% 491 | -10/Mines | Assembled infested the area 504 | -10/Mines | Entered Materials 504 | -9/Materials | Evolved 2 slots: Utility x2 505 | -9/Materials | Identified exit to Storage 1023 | -9/Materials | Discovered new exit (range 3) 1033 | -9/Materials | Entered another Materials area 1033 | -8/Materials | Evolved 2 slots: Propulsion x2 1034 | -8/Materials | Loaded intel: 1 garrison access location 1307 | -8/Materials | Identified exit to Garrison 1308 | -8/Materials | Entered Garrison 1356 | -8/Garrison | Triggered checkpoint 1430 | -8/Garrison | Lost 8 parts (1p4n1u2w) 1442 | -8/Garrison | Triggered checkpoint 1450 | -8/Garrison | Core integrity fell below 50% 1474 | -8/Garrison | Triggered checkpoint 1479 | -8/Garrison | Garrison Relay disabled 1482 | -8/Garrison | Core integrity fell below 20% 1486 | -8/Garrison | Destroyed by C-17 Slicer with Blade Saw Last Messages --------------- 01452_ Field strength at 13. 01452_ Critical hit (Burn: +26). 01453_ Field strength at 3. 01453_ Stasis field depleted. 01459_ Structural Scanner destroyed. 01474_ Beams of light sweep through the air. An alarm sounds. 01475_ Imp. Sensor Array severed. 01476_ Slammed into C-17 Slicer. 01479_ Garrison Relay disabled. 01479_ Relay Coupler [NC] tumbles out of relay unit. 01479_ Relay Coupler [Sentry] tumbles out of relay unit. 01479_ Relay Coupler [Cutter] tumbles out of relay unit. 01479_ Relay Coupler [Hunter] tumbles out of relay unit. 01479_ Relay Coupler [Sentry] tumbles out of relay unit. Map ----- +----------------------------------------------------+ | ?????????????????????????????????? | | ?????????????????????????????????? | | ?????????????????????????????????? | | ?????????????????????????????????? | | ?????????????????????????????????? | | ?????????????????????????????????? | | ?????????????????????????????????? | | ?????????????????????????????????? | | ?????????????????????????????????? | | ??????????????????????############ | | ??????????????????????# | | ??????????????????????# | | ??????????????????????# ######### | | ??????????????????????# #???????? | | ??????????????????????# #???????? | | ??????????????????????# #???????? | | ??????????????????????# #???????? | | ??????????????????????# #???????? | | ??????????????????????# #???????? | | ??????????????????????# #???????? | | ??????????????????????# ###?????? | | ????????#####?????????# #?????? | | ????????# ??????????# #?????? | | ????????# #??????????# #?????? | | ??????### #??????????# ###?????? | | ??????#"#@ ###????????# #???????? | | ??????# cc #????????# #???????? | | ??????#"!!c #????????# #???????? | | ??????#" g #????????# #???????? | | ??????#"# ###??#####?# #???????? | | ??????###! #????# #?# #???????? | | ????????# g###### ### #???????? | | ????????# g #???????? | | ????????# #???????? | | ????????##################???????? | | ?????????????????????????????????? | | ?????????????????????????????????? | | ?????????????????????????????????? | | ?????????????????????????????????? | | ?????????????????????????????????? | | ?????????????????????????????????? | | ?????????????????????????????????? | | ?????????????????????????????????? | | ?????????????????????????????????? | | ?????????????????????????????????? | | | | | | | | | | | +----------------------------------------------------+ Best States ------------- Heat Dissipation 31 Energy Generation 14 Energy Capacity 280 Matter Stores 300 Matter Capacity 300 Sight Range 16 Robot Scan Range 15 Terrain Scan Density 10 Armor Coverage 225 Propulsion Shielding 33 Evasion (%) 55 Recoil Reduction 2 Item Schematics ----------------- None Robot Schematics ------------------ None Fabricated ------------ Nothing Repaired ---------- Nothing Studied --------- None Alien Tech Used ----------------- None Achievements -------------- None Challenges ------------ None Game ------ Seed MiniDeuteriumAccelerator Manual? 0 Play Time 00:15:23 Cumulative 67.9 hours Start 2025.12.27 @ 14:33:33 End 2025.12.27 @ 14:55:12 Sessions 1 Manual Loads 0 Difficulty Rogue Special Mode None Game No. 105 Rogue 83 Adventurer 20 Explorer 2 Win Type - Total 0 Types 0/0/0/0/0/0/0/0/0/0 Lore% 44 Gallery% 39 Achievement% 27 Wizard Run 0 Options --------- Layout 1 ASCII 0 Keyboard 0 Movement Numpad Keybinds 0 Fullscreen 2 Font 24/Smallcaps Map View 50x35 Zoom Use 0% Tactical HUD 1 Map Filters NONE Filters NONE Steam 1 RUN: 7e56fd24-8135-44ba-8470-1fed80e997ce